Cogmind - Beta 13 @@@ ROGUE MODE // 2024.04.19 @ 22:28:52 Player: arkn Result: Destroyed by Y-54 Guardian with Gatling Laser Performance ------------- Evolutions (0) 0 Regions Visited (3) 600 Robots Destroyed (24) 120 Value Destroyed (483) 483 Prototype IDs (0) 0 Alien Tech Used (0) 0 Bonus (0) 0 TOTAL SCORE: 1203 Bonus ------- None Cogmind --------- Core Integrity 0/250 Matter 288/300 Energy 160/160 System Corruption 1% Temperature Cool (6) Movement Core (1500) Ox29 Location -7/Recycling Parts ------- > --- POWER (1) -------- Light Nuclear Core > --- PROPULSION (2) --- (None) > --- UTILITY (2) ------ Heat Sink Huge Storage Unit > --- WEAPON (2) ------- High-powered Shotgun > --- INVENTORY (25) --- Ion Engine Light Ion Engine Light Ion Engine Wheel Wheel Compact Wheel Compact Wheel Compact Wheel Scrap Engine Heat Sink Small Matter Pod (50) Trap Scanner Signal Interpreter Medium Armor Plating Improved Light Armor Plating Arc Projector Arc Projector Light Assault Rifle Gauss Rifle Hammer Mining Claw Greatsword Peak State ------------ > --- POWER ------------ Light Nuclear Core > --- PROPULSION ------- Armored Huge Wheel > --- UTILITY ---------- Heat Sink Huge Storage Unit > --- WEAPON ----------- High-powered Shotgun Gauss Rifle > --- INVENTORY -------- Ion Engine Light Ion Engine Light Ion Engine Wheel Wheel Compact Wheel Compact Wheel Compact Wheel Scrap Engine Heat Sink Small Matter Pod Signal Interpreter Medium Armor Plating Improved Light Armor Plating Arc Projector Arc Projector Arc Projector Arc Projector Light Assault Rifle Light Assault Rifle Hammer Mining Claw Greatsword [Rating: 26] Favorites ----------- Power Light Nuclear Core Engine Light Ion Engine Power Core Light Nuclear Core Propulsion Wheel Leg Aluminum Leg Wheel Wheel Utility Huge Storage Unit Device Improved Terrain Scanner Storage Huge Storage Unit Protection Light Armor Plating Weapon Assault Rifle Energy Gun Particle Gun Ballistic Gun Assault Rifle Impact Weapon Hammer Build | -11 -10 -10 -7 ------- Run | Yrd Mat Sub Rec Slots Evolved . | . . . . Power . | . . . . Propulsion . | . . . . Utility . | . . . . Weapon . | . . . . Parts Attached 19 | 1 6 7 5 Power 3 | . 2 1 . Engine 1 | . 1 . . Core 2 | . 1 1 . Reactor . | . . . . Propulsion 4 | . 2 1 1 Treads . | . . . . Leg . | . . . . Wheel 4 | . 2 1 1 Hover . | . . . . Flight . | . . . . Utility 4 | 1 1 2 . Device 2 | 1 . 1 . Storage 1 | . 1 . . Processor . | . . . . Hackware . | . . . . Protection 1 | . . 1 . Artifact . | . . . . Weapon 8 | . 1 3 4 Energy Gun 3 | . . 2 1 Energy Cannon . | . . . . Ballistic Gun 4 | . 1 1 2 Ballistic Cannon . | . . . . Launcher . | . . . . Special Weapon . | . . . . Impact Weapon 1 | . . . 1 Slashing Weapon . | . . . . Piercing Weapon . | . . . . Special Melee Weapon . | . . . . Unidentified Prototypes . | . . . . Parts Lost 10 | . 2 6 2 Power 2 | . 1 1 . Propulsion 2 | . . 1 1 Utility 2 | . . 2 . Weapon 4 | . 1 2 1 Highest Loss Streak 5 | . 2 5 2 To Critical Strikes . | . . . . Average Slot Usage (%) 94 | . 99 90 88 Engine 2 | . 5 . . Core 10 | . 8 12 14 Leg 1 | . 4 . . Wheel 22 | . 23 27 17 Device 11 | . 14 4 14 Storage 14 | . 14 14 14 Energy Gun 7 | . 5 10 8 Ballistic Gun 19 | . 22 16 16 Naked Turns . | . . . . Heaviest Build 94 | 13 90 94 93 Greatest Support 28 | 20 20 26 28 Greatest Overweight (x) 4 | . 4 4 3 Average Overweight (x) 3 | . 2 3 3 Largest Inventory Capacity 25 | 8 25 25 25 Average Capacity 22 | 8 20 25 25 Most Carried 25 | 8 18 21 25 Average Carried 17 | 6 12 19 23 Final Capacity 25 | 8 25 25 25 Final Carried 24 | 8 18 15 24 Class Distribution -------------------- 87% | Mutant 12% | Scavenger-Mutant Dominant Class ---------------- Mutant | -10/Materials Mutant | -10/Subcaves Mutant | -7/Recycling Resources | -11 -10 -10 -7 ----------- Run | Yrd Mat Sub Rec Matter Collected 640 | 222 226 108 84 Remotely . | . . . . Salvage Created 815 | 97 393 169 156 Parts 46 | 7 29 7 3 Haulers Intercepted 1 | . 1 . . Recyclers Shooed . | . . . . Parts Field Recycled . | . . . . Retrieved Matter . | . . . . Parts Self-Destructed 10 | . . 10 . Prevented . | . . . . Kills | -11 -10 -10 -7 ------- Run | Yrd Mat Sub Rec Combat Hostiles Destroyed 16 | . 8 7 1 Guns 16 | . 8 7 1 Classes Destroyed 8 | 2 4 2 . Worker 1 | . 1 . . Tunneler 1 | 1 . . . Hauler 1 | . 1 . . Recycler 3 | 1 1 . 1 Turret 2 | . . 2 . Swarmer 9 | . 3 6 . Grunt 5 | . 5 . . Sentry 2 | . . 1 1 Best Kill Streak 4 | 2 3 4 1 Combat Bots Only 4 | . 3 4 1 Max Kills in Single Turn 2 | 1 2 1 1 Gunslinging 1 | . 1 . . Exploded . | . . . . Melee . | . . . . Uniques/NPCs Destroyed . | . . . . Combat | -11 -10 -10 -7 -------- Run | Yrd Mat Sub Rec Hostile Shots Fired 228 | . 35 127 66 Missed 87 | . 8 54 25 Damage Taken 1167 | . 374 492 301 Core 250 | . 66 108 76 Absorbed by Shields . | . . . . Core Remaining (%) 100 | 100 . . . Volleys Fired 63 | 4 24 26 9 Largest 2 | 2 2 2 2 Hottest 105 | 60 60 85 105 Shots Fired 113 | 8 48 42 15 Gun 113 | 8 48 42 15 Cannon . | . . . . Launcher . | . . . . Special . | . . . . Kinetic 75 | 4 42 20 9 Thermal 28 | . . 22 6 Explosive . | . . . . Electromagnetic 10 | 4 6 . . Robot Hit Streak 23 | 2 12 15 23 Robot Miss Streak 4 | 2 1 4 4 Penetration Max . | . . . . Secondary Targets 2 | . 2 . . Max Gunslinging Chain 1 | . 1 . . Shots Hit Robots 86 | 4 39 32 11 Core Hits 44 | 3 19 13 9 Critical Kills . | . . . . Critical Parts Destroyed . | . . . . Critical Strikes 1 | . . 1 . Burn 1 | . . 1 . Melee Attacks 6 | . . . 6 Impact 6 | . . . 6 Slashing . | . . . . Piercing . | . . . . Sneak Attacks . | . . . . Combat Hostiles . | . . . . Follow-up Attacks . | . . . . Damage Inflicted 1349 | 74 518 463 294 Guns 1325 | 50 518 463 294 Cannons . | . . . . Explosions 24 | 24 . . . Melee . | . . . . Ramming . | . . . . Kinetic 822 | 10 465 187 160 Thermal 434 | 24 . 276 134 Explosive . | . . . . Electromagnetic 93 | 40 53 . . Impact . | . . . . Slashing . | . . . . Piercing . | . . . . Highest Corruption 1 | . 1 1 1 Average Corruption 1 | . 1 1 1 Corruption Purged . | . . . . Corruption Blocked . | . . . . Effects 15 | . 4 5 6 Message Errors 5 | . 1 1 3 Matter Fused 2 | . 1 1 . Heat Flow Errors 1 | . 1 . . Energy Discharges 4 | . 1 2 1 Data Loss (minor) 2 | . . 1 1 Data Loss (major) 1 | . . . 1 Overload Shots . | . . . . Overflow Damage . | . . . . Projectiles . | . . . . Explosions . | . . . . Melee . | . . . . Knockbacks . | . . . . Impact . | . . . . Kinetic . | . . . . Secondary . | . . . . Self-Inflicted Damage . | . . . . Shots . | . . . . Rammed 1 | . 1 . . Targets Rammed 1 | . 1 . . Kicked . | . . . . Crushed . | . . . . Highest Temperature 141 | 20 141 42 132 Average Temperature 53 | 20 68 23 52 Received Heat Transfer 528 | . 168 276 84 Siege Activations . | . . . . Robots Corrupted . | . . . . Combat Hostiles . | . . . . Parts Fried . | . . . . Impact Corruptions . | . . . . Robots Melted . | . . . . Combat Hostiles . | . . . . Parts Melted . | . . . . Heat Transferred 1040 | . . 740 300 Parts Sabotaged . | . . . . Parts Stolen . | . . . . Parts Stripped . | . . . . Power Chain Reactions 1 | 1 . . . Alert | -11 -10 -10 -7 ------- Run | Yrd Mat Sub Rec Peak Influence 540 | 10 200 . 540 Initial 524 | . 6 . 524 Average 236 | 7 71 . 491 Maximum Alert Level 2 | . 1 . 2 Low Security (%) 58 | 100 97 . . Level 1 9 | . 2 . 19 Level 2 32 | . . . 80 Level 3 . | . . . . Level 4 . | . . . . Level 5 . | . . . . High Security . | . . . . Max Security . | . . . . Squads Dispatched 2 | . 2 . . Investigation . | . . . . Extermination . | . . . . Reinforcement 2 | . 2 . . Assault . | . . . . Garrison . | . . . . Intercept . | . . . . Searches Triggered . | . . . . Construction Impeded . | . . . . Haulers Reinforced . | . . . . Active Scanning Responses . | . . . . Cargo Convoy Interrupts . | . . . . Stealth | -11 -10 -10 -7 --------- Run | Yrd Mat Sub Rec Distress Signals 1 | . 1 . . Communications Jammed . | . . . . Distress Signals . | . . . . Times Spotted 59 | . 9 48 2 Peak Tracking Total 6 | . 4 6 1 Tactical Retreats 5 | . . 5 . Traps | -11 -10 -10 -7 ------- Run | Yrd Mat Sub Rec Traps Triggered 1 | . 1 . . Indirectly . | . . . . Trap Hack Attempts . | . . . . Triggered . | . . . . Disarmed . | . . . . Reprogrammed . | . . . . Reused . | . . . . Traps Extracted . | . . . . Installed . | . . . . Triggered . | . . . . Machines | -11 -10 -10 -7 ---------- Run | Yrd Mat Sub Rec Machines Disabled 2 | . 1 1 . Max in Single Turn 1 | . 1 1 . Machines Repaired . | . . . . Machines Dismantled . | . . . . Machines Sabotaged . | . . . . Overloaded Fab Kills . | . . . . Hacking | -11 -10 -10 -7 --------- Run | Yrd Mat Sub Rec Machines Accessed 7 | . 4 . 3 Terminals 7 | . 4 . 3 Fabricators . | . . . . Repair Stations . | . . . . Recycling Units . | . . . . Scanalyzers . | . . . . Garrison Access . | . . . . Total Hacks 19 | . 10 . 9 Successful 8 | . 5 . 3 Failed 11 | . 5 . 6 Catastrophic 3 | . 3 . . Database Lockouts . | . . . . Manual 17 | . 10 . 7 Terminals 19 | . 10 . 9 Fabricators . | . . . . Repair Stations . | . . . . Recycling Units . | . . . . Scanalyzers . | . . . . Garrison Access . | . . . . Terminal Hacks 3 | . 1 . 2 Terminal Index 2 | . 1 . 1 Zone Layout 1 | . . . 1 Fabricator Hacks . | . . . . Repair Station Hacks . | . . . . Recycling Unit Hacks . | . . . . Scanalyzer . | . . . . Garrison Access Hacks . | . . . . Unauthorized Hacks 5 | . 4 . 1 Terminals 5 | . 4 . 1 Track 1 | . 1 . . Botnet 4 | . 3 . 1 Fabricators . | . . . . Repair Stations . | . . . . Recycling Units . | . . . . Scanalyzers . | . . . . Garrison Access . | . . . . Data Cores Recovered . | . . . . Used . | . . . . Hacking Detections 7 | . 4 . 3 Full Trace Events 1 | . . . 1 Feedback Events . | . . . . Feedback Blocked . | . . . . Robot Schematics Acquired . | . . . . Robots Built . | . . . . Authchips . | . . . . Time . | . . . . Total Robot Build Rating . | . . . . Part Schematics Acquired . | . . . . Parts Built . | . . . . Authchips . | . . . . Time . | . . . . Total Part Build Rating . | . . . . Parts Repaired . | . . . . Time . | . . . . Parts Recycled . | . . . . Recycled Matter . | . . . . Retrieved Matter . | . . . . Retrieved Components . | . . . . Parts Scanalyzed . | . . . . Part Schematics Acquired . | . . . . Parts Damaged . | . . . . Bothacking | -11 -10 -10 -7 ------------ Run | Yrd Mat Sub Rec Used RIF Installer . | . . . . Robots Hacked . | . . . . Non-combat . | . . . . Combat . | . . . . Robot Hacks Applied . | . . . . Relay Couplers Released . | . . . . Fabnet Peak Effective % . | . . . . Robots Rewired . | . . . . Allies Hacked . | . . . . Hacks Repelled . | . . . . Allies | -11 -10 -10 -7 -------- Run | Yrd Mat Sub Rec Total Allies . | . . . . Largest Group . | . . . . Highest-Rated Group . | . . . . Highest-Rated Ally . | . . . . Total Orders . | . . . . Ally Attacks . | . . . . Total Damage . | . . . . Kills . | . . . . Allies Corrupted . | . . . . Allies Melted . | . . . . Intel | -11 -10 -10 -7 ------- Run | Yrd Mat Sub Rec Robot Analysis Total . | . . . . Derelict Logs Recovered . | . . . . Drone Launches . | . . . . Drone Recoveries . | . . . . Exploration | -11 -10 -10 -7 ------------- Run | Yrd Mat Sub Rec Turns Passed 1630 | 28 720 388 494 Spaces Moved 878 | 11 348 216 303 Core . | . . . . Treads . | . . . . Legs 74 | 11 63 . . Wheels 804 | . 285 216 303 Hover . | . . . . Flight . | . . . . Fastest Speed 80 | 120 80 135 135 Average Speed 135 | 120 126 139 142 Slowest Speed 145 | 120 140 140 145 Overloaded Moves . | . . . . Propulsion Burnouts . | . . . . Robots Hopped . | . . . . Cave-ins Triggered . | . . . . Exploration Rate (%) 31 | 3 38 17 68 Regions Visited 3 Branch Regions 2 Pre-discovered Areas . | . . . . Known Exits Taken . | . . . . Unknown Exits Taken 3 | 1 1 1 . Scrap Searched 1 | . . 1 . Spaces Dug 5 | . . . 5 Terrain Destroyed 7 | 2 . . 5 Melee 5 | . . . 5 Projectile . | . . . . AOE 2 | 2 . . . Terrain Rammed . | . . . . Walls Destroyed . | . . . . Machines Disabled . | . . . . Actions | -11 -10 -10 -7 --------- Run | Yrd Mat Sub Rec Total 1202 | 17 583 260 342 Wait 194 | . 183 9 2 Move 875 | 10 347 215 303 Hop . | . . . . Pick Up 31 | 2 16 3 10 Fast Attach 3 | 1 . . 2 Attach 10 | . 4 6 . Detach . | . . . . Swap 6 | . 2 1 3 Drop 13 | . 6 . 7 Fire 63 | 4 24 26 9 Melee 6 | . . . 6 Ram 1 | . 1 . . Kick . | . . . . Crush . | . . . . Escape Stasis . | . . . . Rewire . | . . . . Trap . | . . . . Miscellaneous . | . . . . Route ------- -11/Scrapyard -10/Materials -10/Subcaves -7/Recycling History --------- Turn | Location | Event 7 | -11/Scrapyard | Discovered new exit (range 2) 29 | -11/Scrapyard | Entered Materials 321 | -10/Materials | Build established: Mutant 732 | -10/Materials | Discovered new exit (range 4) 749 | -10/Materials | Entered Subcaves 1084 | -10/Subcaves | Discovered new exit (range 15) 1091 | -10/Subcaves | Core integrity fell below 50% 1135 | -10/Subcaves | Lost 5 parts (1p1n1u2w) 1137 | -10/Subcaves | Entered Recycling 1137 | -7/Recycling | Found Scrap Engine 1567 | -7/Recycling | Core integrity fell below 20% 1631 | -7/Recycling | Destroyed by Y-54 Guardian with Gatling Laser Last Messages --------------- Trojan loaded successfully. Testing... Terminal linked with 0 systems. Awaiting botnet instructions. >>Index(Terminals) Found 6 terminals. Downloaded coordinate data. 01559_ Y-54 Guardian springs to life. 01566_ Y-54 Guardian destroyed. 01569_ Acquired 36 matter. 01573_ U-05 Engineer builds a Door. 01601_ Connecting with Terminal... 01613_ VPP,RYNI:77SQIY77/YPX9L4/4B=P 01618_ Y-54 Guardian springs to life. 01620_ R-06 Scavenger destroyed. 01623_ U-05 Engineer builds a Door. 01624_ R-06 Scavenger collects Com. Wheel. 01625_ Arm. Huge Wheel destroyed. 01625_ Gatling Laser destroyed. 01627_ R-06 Scavenger collects Com. Wheel. Map ----- +----------------------------------------------------+ | ???????????????# # #?# | | ???????????????# [ # #?# | | ???????????????# =# """"" """"" #?# ! | | ???????????????########### """"" """"" #?# = | | ?????????????????????????# """"" """"" #?# | | ????????????????########## """"" """"" #?# | | ????????????????# # #?# | | ????????????????# """ # #?# | | ????????????????# """"" + """"" """" #?# | | ????????????????# """"" # """"" """" #?# | | ????????????????# """"" # """"" """" #?# | | ????????????????# """ # """"" #?#### | | ????????????????# # ###### | | ????????????????# # | | ????????????????# # #" "#### | | ????????????????########## #"Y"#??# | | ?????????????????????????# #"""#??# | | ????????????????????########################+##+## | | ?????????????????????! ! ?! ????????# | | ?????????????????????? ! ! ????????# "" | | ??????????????????????? !?????????# "" | | ????????????????????????!! ???####### T" | | ????????????# ############+##### # """ "" | | ????????????+ r r u u "" # """ "" | | ????????????# =r T + """ | | ????????????+ =%@ r rr # | | ??????????????# |######Y####### # """ """ | | ???????????????????????##?????### ## """ """ | | ??????????????????????????????# # ## """ """ | | ??????????????????????########### ## | | ??????????????????????# # ########+##??# | | ??????????????????????# + #????????????# | | ??????????????????????# """ """ # ##???????????# | | ??????????????????????# """ """ # %#???????????# | | ??????????????????????# """ """ # ##???????????# | | ??????????????????????# # #????????????? | | ??????????????????????# # ######## ##### | | ??????????????????????# # | | ??????????????????????########### | | ?????????????????????????????#### | | ????????????????????????????######+############### | | ????????????????????????????# #???????? | | ????????????????????????????# """ """ #???????? | | ????????????????????????????# """ """ #???????? | | ????????????????????????????# """ """ #???????? | | ????????????????????????????# #???????? | | ????????????????????????????# """ """ #???????? | | ????????????????????????????# """ """ #???????? | | ????????????????????????????# """ """ #???????? | | ????????????????????????????# #???????? | +----------------------------------------------------+ Best States ------------- Heat Dissipation 35 Energy Generation 14 Energy Capacity 160 Matter Stores 300 Matter Capacity 300 Sight Range 16 Terrain Scan Range 16 Terrain Scan Density 10 Armor Coverage 150 Evasion (%) 55 Item Schematics ----------------- None Robot Schematics ------------------ None Fabricated ------------ Nothing Alien Tech Used ----------------- None Achievements -------------- None Challenges ------------ None Game ------ Seed AssemblySigixBooster Manual? 0 Play Time 00:18:57 Cumulative 146.3 hours Start 2024.04.19 @ 22:14:07 End 2024.04.19 @ 22:28:52 Sessions 1 Manual Loads 0 Difficulty Rogue Special Mode None Game No. 130 Rogue 124 Adventurer 0 Explorer 6 Win Type - Total 3 Types 3/0/0/0/0/0/0/0/0 Lore% 42 Gallery% 55 Achievement% 47 Wizard Run 0 Options --------- Layout 0 ASCII 0 Keyboard 0 Movement Numpad Keybinds 0 Fullscreen 1 Font 24/Smallcaps Map View 113x50 Zoom Use 0% Tactical HUD 1 Map Filters NONE Filters NONE Steam 1 RUN: 4c81da37-9b9c-4e90-aa3c-d01d6675b4e0